lending/lending_fUSD_20240908
["ID","MTS","AMOUNT","RATE_DAILY","PERIOD"]
[337568890,1725827440192,-1085.21484752,0.00013,2]
[337568891,1725827440250,-1043.21965598,0.00013,2]
[337568892,1725827440364,-676.78766256,0.00013,2]
[337568893,1725827440868,-2016.437266,0.00013,2]
[337568894,1725827440880,-344.62556429,0.00013,2]
[337569002,1725827443871,-5814.4056,0.00013,2]
[337569011,1725827447921,-140967.65742963,0.00013,2]
[337569012,1725827447930,-33000.98756059,0.00013,2]
[337569013,1725827447939,-500.0,0.00013,2]
[337569014,1725827447948,-1265179.2286577,0.00013,2]
[337569015,1725827447957,-600.0,0.000131,3]
[337569016,1725827447966,-3351.4045155,0.00013122,2]
[337569017,1725827447975,-169.66382041,0.000133,2]
[337569018,1725827447985,-3351.4045155,0.00013344,2]
[337569019,1725827447994,-405.07836508,0.00013398,2]
[337569020,1725827448002,-1000.0,0.000134,3]
[337569021,1725827448011,-150.0,0.00013488,2]
[337569022,1725827448020,-154.57,0.000135,2]
[337569023,1725827448029,-3351.4045155,0.00013567,2]
[337569024,1725827448038,-155.017,0.00013567,2]
[337569025,1725827448047,-154.57,0.00013567,2]
[337569026,1725827448056,-200.22,0.00013699,2]
[337569027,1725827448065,-200.0,0.00013699,2]
[337569028,1725827448074,-2751.0,0.00013699,2]
[337569029,1725827448084,-166.43,0.00013699,2]
[337569030,1725827448093,-1657.0,0.000137,2]
[337569031,1725827448102,-169.66382041,0.000137,2]
[337569032,1725827448111,-3351.4045155,0.00013789,2]
[337569033,1725827448120,-201.80207517,0.00013789,5]
[337569034,1725827448130,-15407.83689392,0.0001379,2]
[337569035,1725827448139,-263.2636356,0.0001379,2]
[337569036,1725827448149,-1180.37268989,0.00013799,5]
[337569037,1725827448158,-214407.897539,0.000138,3]
[337569038,1725827448167,-3109.79574314,0.000139,2]
[337569039,1725827448176,-1000.0,0.000139,2]
[337569040,1725827448185,-1000.0,0.000139,3]
[337569041,1725827448194,-1000.0,0.000139,3]
[337569042,1725827448204,-1000.0,0.000139,3]
[337569043,1725827448213,-635.0,0.000139,2]
[337569044,1725827448223,-2400.0,0.000139,5]
[337569045,1725827448232,-47991.1492643,0.000139,3]
[337569046,1725827448241,-192.80913889,0.000139,2]
[337569047,1725827448250,-160.74092611,0.000139,2]
[337569048,1725827448259,-255.0,0.00014008,2]
[337569049,1725827448268,-3351.4045155,0.00014011,2]
[337569050,1725827448277,-169.66382041,0.000141,2]
[337569051,1725827448286,-360.5,0.00014104,2]
[337569052,1725827448295,-447.0,0.00014118,2]
[337569053,1725827448305,-9307.0,0.00014118,2]
[337569054,1725827448314,-1145.0,0.00014118,2]
[337569055,1725827448322,-1260.0,0.00014118,2]
[337569056,1725827448332,-284716.71235194,0.0001418,2]
[337569057,1725827448341,-532.47,0.00014192,2]
[337569058,1725827448350,-532.47,0.00014192,2]
[337569059,1725827448359,-532.47,0.00014192,2]
[337569060,1725827448367,-532.47,0.00014192,2]
[337569061,1725827448377,-532.47,0.00014192,2]
[337569062,1725827448386,-532.47,0.00014192,2]
[337569063,1725827448395,-532.47,0.00014192,2]
[337569064,1725827448404,-347.92,0.00014192,2]
[337569065,1725827448413,-532.47,0.00014192,2]
[337569066,1725827448422,-3300.0,0.000142,5]
[337569067,1725827448432,-3351.4045155,0.00014233,2]
[337569068,1725827448441,-150.0,0.00014237,2]
[337569069,1725827448450,-155.017,0.00014279,2]
[337569070,1725827448459,-228.41998727,0.00014284,2]
[337569071,1725827448468,-561.4769346,0.00014284,2]
[337569072,1725827448478,-4100.0,0.000143,5]
[337569073,1725827448486,-931.0,0.00014368,2]
[337569074,1725827448495,-557.0,0.00014368,2]
[337569075,1725827448505,-1986.526,0.00014368,2]
[337569076,1725827448514,-553.0,0.00014368,2]
[337569077,1725827448523,-3342.0,0.00014368,2]
[337569078,1725827448532,-248.0,0.00014368,2]
[337569079,1725827448541,-1119.0,0.00014368,2]
[337569080,1725827448550,-1921.0,0.00014368,2]
[337569081,1725827448559,-805.0,0.00014368,2]
[337569082,1725827448568,-624.0,0.00014368,2]
[337569083,1725827448577,-150.0,0.00014368,2]
[337569084,1725827448586,-5858.0,0.00014368,2]
[337569085,1725827448595,-1547.0,0.00014368,2]
[337569086,1725827448604,-500.0,0.00014373,2]
[337569087,1725827448614,-500.0,0.00014373,2]
[337569088,1725827448623,-200.22,0.00014384,2]
[337569089,1725827448632,-800.0,0.000144,5]
[337569090,1725827448642,-1000.0,0.00014454,2]
[337569091,1725827448651,-3351.4045155,0.00014456,2]
[337569092,1725827448660,-169.66382041,0.000145,2]
[337569093,1725827448669,-800.0,0.000145,5]
[337569094,1725827448679,-261.21,0.00014504,2]
[337569095,1725827448688,-5842.16,0.00014504,2]
[337569096,1725827448698,-582.16202813,0.0001454,2]
[337569097,1725827448707,-150.0,0.00014568,2]
[337569098,1725827448716,-150.0,0.00014568,2]
[337569099,1725827448726,-150.09,0.00014568,2]
[337569100,1725827448735,-150.0,0.00014568,2]
[337569101,1725827448745,-150.0,0.00014568,2]
[337569102,1725827448754,-150.0,0.00014568,2]
[337569103,1725827448763,-150.0,0.00014568,2]
[337569104,1725827448773,-150.0,0.00014568,2]
[337569105,1725827448782,-150.0,0.00014568,2]
[337569106,1725827448791,-150.0,0.00014568,2]
[337569107,1725827448800,-150.0,0.00014568,2]
[337569108,1725827448812,-209.96855529,0.0001458,2]
[337569109,1725827448822,-228.41998727,0.00014592,2]
[337569110,1725827448832,-1038.41513251,0.00014592,2]
[337569111,1725827448841,-561.47693458,0.00014592,2]
[337569112,1725827448850,-800.0,0.000146,5]
[337569113,1725827448860,-210.0,0.0001461,2]
[337569114,1725827448870,-3351.4045155,0.00014678,2]
[337569115,1725827448880,-101184.94621054,0.0001468,2]
[337569116,1725827448889,-3743.90582207,0.0001469,2]
[337569117,1725827448899,-1468.30408573,0.00014699,5]
[337569118,1725827448908,-198.19792483,0.00014699,5]
[337569119,1725827448918,-155.94268703,0.000147,2]
[337569120,1725827448927,-800.0,0.000147,5]
[337569121,1725827448937,-210.0,0.0001478,2]
[337569122,1725827448946,-635.8192301,0.00014798,2]
[337569123,1725827448955,-966.0,0.000148,2]
[337569124,1725827448972,-1136.0,0.000148,5]
[337569125,1725827448984,-494.53029836,0.000149,2]
[337569126,1725827448997,-8500.0,0.000149,2]
[337569127,1725827449013,-5937.25204869,0.000149,2]
[337569128,1725827449025,-3351.4045155,0.000149,2]
[337569129,1725827449034,-211.88152153,0.000149,2]
[337569130,1725827449044,-228.41998727,0.000149,2]
[337569131,1725827449053,-1038.41513251,0.000149,2]
[337569132,1725827449062,-561.47693458,0.000149,2]
[337569133,1725827449071,-169.66382041,0.000149,2]
[337569134,1725827449081,-192.80913889,0.000149,2]
[337569135,1725827449091,-320.3975,0.000149,2]
[337569136,1725827449101,-160.74092611,0.000149,2]
[337569137,1725827449111,-13102.16134171,0.00014956,2]
[337569138,1725827449121,-210.0,0.0001496,2]
[337569139,1725827449130,-500.0,0.00014973,2]
[337569140,1725827449140,-150.0,0.00014973,2]
[337569141,1725827449150,-303847.33501541,0.0001498,2]
[337569142,1725827449160,-151.0,0.0001498,2]
[337569143,1725827449170,-151.0,0.0001498,2]
[337569144,1725827449179,-151.0,0.0001498,2]
[337569145,1725827449189,-151.0,0.0001498,2]
[337569146,1725827449198,-151.0,0.0001498,2]
[337569147,1725827449208,-150.0,0.00014986,2]
[337569148,1725827449217,-151.6,0.0001499,2]
[337569149,1725827449227,-151.6,0.0001499,2]
[337569150,1725827449236,-263.2636356,0.0001499,2]
[337569151,1725827449246,-274.3,0.00014994,2]
[337569152,1725827449255,-2265.57480447,0.00014999,2]
[337569153,1725827449265,-1000.0,0.00014999,2]
[337569154,1725827449274,-1000.0,0.00014999,2]
[337569155,1725827449283,-220.868926,0.00014999,5]
[337569156,1725827449292,-152.379376,0.00014999,5]
[337569157,1725827449302,-35645.15133512,0.00015,2]
[337569158,1725827449311,-5279524.7444059,0.00015,2]
[337569159,1725827449320,-3119141.77143469,0.00015,2]
[337569160,1725827449331,-1897731.70511592,0.00015,2]
[337569161,1725827449895,-250.0,0.00012968,2]
[337569162,1725827449905,-532.47,0.00014192,2]
[337569163,1725827449915,-186979.11264557,0.00015,2]
[337569164,1725827449926,-18941.82842664,0.00015,2]
[337569165,1725827449938,-214952.52200658,0.00015,2]
[337569166,1725827449949,-5380.3,0.00015,2]
[337569167,1725827449960,-223594.27853634,0.00015,2]
[337569168,1725827449972,-4186.74848094,0.00015,2]
[337569169,1725827449984,-599.38775637,0.00015,2]
[337569170,1725827615433,500.0,0.0002612,120]
[337569171,1725827672751,177.55,0.00010959,2]
[337569172,1725827703216,500.0,0.00027,120]
[337569173,1725827980265,783.027909,0.00012456,2]
[337569174,1725828074229,256.38,0.00010627,2]
[337569175,1725828079102,326.6,0.00011345,2]
[337569177,1725828178461,750.0,0.00011,2]
[337570168,1725828526154,-165.63091281,0.00012749,2]
[337570169,1725828526182,-6183.65758851,0.0001279,2]
[337570170,1725828567404,170.92,0.00010586,2]
[337570171,1725828575300,300.0,0.00028,120]
[337570172,1725828594743,153.94,0.00010959,2]
[337570173,1725828626360,340.61,0.00011108,2]
[337570176,1725828632285,-155.34132063,0.00012789,2]
[337570177,1725828632293,-94.9964849,0.00012849,2]
[337570178,1725828632305,-55.0035151,0.00012849,2]
[337570179,1725828632315,-150.0,0.00012889,2]
[337570180,1725828632324,-783.81410538,0.0001289,2]
[337570181,1725828632335,-20175.06419267,0.0001289,2]
[337570182,1725828632354,-433.06,0.0001289,2]
[337570183,1725828632366,-433.06,0.0001289,2]
[337570184,1725828632375,-433.06,0.0001289,2]
[337570185,1725828632385,-433.06,0.0001289,2]
[337570186,1725828632395,-433.06,0.0001289,2]
[337570187,1725828632408,-2326.13267913,0.0001289,2]
[337570188,1725828632418,-26267.19744565,0.000129,2]
[337570189,1725828632429,-871.5527439,0.000129,2]
[337570190,1725828632441,-2737.33492461,0.000129,2]
[337570191,1725828632452,-1368.4452503,0.000129,2]
[337570192,1725828632467,-7932.46623554,0.000129,2]
[337570193,1725828632478,-1000.0,0.000129,2]
[337570194,1725828632488,-141.14703034,0.000129,2]
[337570195,1725828632499,-588.91236966,0.000129,2]
[337570196,1725828632508,-691.10195635,0.000129,2]
[337570197,1725828632520,-499.60047608,0.000129,2]
[337570198,1725828632535,-931.95596757,0.000129,2]
[337570199,1725828632545,-1484.6869,0.000129,2]
[337570200,1725828632554,-1000.0,0.00012974,2]
[337570201,1725828632564,-168.8,0.00013164,2]
[337570202,1725828632573,-433.06,0.00013228,2]
[337570203,1725828632583,-250.0,0.00013233,2]
[337570205,1725828632592,-1501.56,0.00013238,2]
[337570207,1725828632602,-433.06,0.00013238,2]
[337570208,1725828632611,-433.06,0.00013238,2]
[337570210,1725828632621,-433.06,0.00013238,2]
[337570212,1725828632630,-433.06,0.00013238,2]
[337570213,1725828632639,-433.06,0.00013238,2]
[337570215,1725828632648,-433.06,0.00013238,2]
[337570217,1725828632657,-131.57713243,0.00013244,2]
[337570218,1725828632669,-18.42286757,0.00013244,2]
[337570219,1725828632678,-150.99,0.00013244,2]
[337570220,1725828632687,-226.49991422,0.00013244,2]
[337570221,1725828632699,-568.51008578,0.00013244,2]
[337570222,1725828632708,-168.8,0.00013245,2]
[337570223,1725828632718,-179.99,0.00013245,2]
[337570224,1725828632727,-499.99,0.00013245,2]
[337570225,1725828632737,-899.82,0.00013249,2]
[337570226,1725828632746,-1267.85290602,0.00013249,2]
[337570227,1725828632761,-1740.0,0.00013249,2]
[337570228,1725828632772,-1032.01313129,0.00013249,2]
[337570229,1725828632784,-3498.10131452,0.00013249,2]
[337570230,1725828632798,-2425.5691086,0.00013249,2]
[337570231,1725828632810,-2810.31557355,0.00013249,2]
[337570232,1725828638192,-420.0,0.00013249,2]
[337570233,1725828638204,-1202.39730484,0.00013249,2]
[337570234,1725828638248,-9503.75066118,0.00013249,2]
[337570235,1725828638258,-250.0,0.00013249,2]
[337570236,1725828638268,-180.28,0.00013253,2]
[337570237,1725828638277,-433.06,0.00013256,2]
[337570238,1725828638286,-163.72,0.00013256,2]
[337570239,1725828638296,-394.75,0.00013266,2]
[337570240,1725828638305,-152.44,0.00013266,2]
[337570241,1725828638314,-250.0,0.00013271,2]
[337570242,1725828638324,-828.65,0.00013274,2]
[337570243,1725828638333,-152.44,0.00013288,2]
[337570244,1725828638344,-152.44,0.00013311,2]
[337570245,1725828638353,-0.99327558,0.00013333,2]
[337570246,1725828638364,-151.44672442,0.00013333,2]
[337570247,1725828638373,-465.87,0.00013364,2]
[337570248,1725828638384,-34.85317177,0.00013372,2]
[337570249,1725828638401,-305.75682823,0.00013372,2]
[337570250,1725828638411,-150.0,0.00013488,2]
[337570251,1725828638421,-155.017,0.00013488,2]
[337570252,1725828638430,-443.18,0.000135,2]
[337570253,1725828638439,-326.17,0.00013597,2]
[337570254,1725828638450,-433.06,0.00013689,2]
[337570255,1725828638459,-200.24,0.00013699,2]
[337570256,1725828638469,-200.0,0.00013699,2]
[337570257,1725828638482,-166.43,0.00013699,2]
[337570258,1725828638493,-2751.0,0.00013699,2]
[337570259,1725828638503,-150.16,0.00013699,2]
[337570260,1725828638514,-150.0,0.00013787,2]
[337570261,1725828638524,-433.06,0.0001389,2]
[337570262,1725828638533,-549.14973687,0.000139,5]
[337570263,1725828638546,-150.85026313,0.000139,5]
[337570264,1725828638556,-255.0,0.00013997,2]
[337570265,1725828638566,-365.22089596,0.00014,5]
[337570266,1725828638578,-598.75373411,0.00014,5]
[337570268,1725828638590,-270.9400001,0.00014,5]
[337570417,1725828640248,-165.08536983,0.00014,5]
[337570419,1725828640258,-150.0,0.00014087,2]
[337570421,1725828640268,-433.06,0.0001409,2]
[337570423,1725828640278,-2100.0,0.000141,5]
[337570425,1725828640288,-433.06,0.0001419,2]
[337570427,1725828640297,-155.017,0.00014196,2]
[337570429,1725828640306,-2800.0,0.000142,5]
[337570431,1725828640316,-433.06,0.0001429,2]
[337570433,1725828640325,-2137.9861398,0.000143,5]
[337570435,1725828640337,-483.03349042,0.000143,5]
[337570561,1725828641606,-878.98036978,0.000143,5]
[337570563,1725828641616,-198.03948012,0.00014358,2]
[337570565,1725828641627,-235.02051988,0.00014358,2]
[337570567,1725828641636,-287.75930201,0.00014358,2]
[337570569,1725828641647,-145.30069799,0.00014358,2]
[337570571,1725828641655,-433.06,0.00014358,2]
[337570573,1725828641664,-433.06,0.00014358,2]
[337570575,1725828641674,-433.06,0.00014358,2]
[337570577,1725828641685,-433.06,0.00014358,2]
[337570579,1725828641695,-635.0,0.00014368,2]
[337570581,1725828641704,-624.0,0.00014368,2]
[337570583,1725828641714,-184.97903854,0.00014368,2]
[337570585,1725828641726,-1075.02096146,0.00014368,2]
[337570587,1725828641734,-447.0,0.00014368,2]
[337570589,1725828641743,-1547.0,0.00014368,2]
[337570591,1725828641752,-931.0,0.00014368,2]
[337570593,1725828641761,-150.387,0.00014368,2]
[337570595,1725828641770,-430.3339165,0.00014368,2]
[337570597,1725828641781,-380.6660835,0.00014368,2]
[337570599,1725828641790,-557.0,0.00014368,2]
[337570601,1725828641799,-553.0,0.00014368,2]
[337570603,1725828641807,-1986.526,0.00014368,2]
[337570604,1725828641817,-102.6637396,0.00014368,2]
[337570607,1725828641832,-145.3362604,0.00014368,2]
[337570609,1725828641841,-1921.0,0.00014368,2]
[337570611,1725828641850,-712.03561492,0.00014368,2]
[337570613,1725828641862,-406.96438508,0.00014368,2]
[337570615,1725828641872,-805.0,0.00014368,2]
[337570617,1725828641881,-3342.0,0.00014368,2]
[337570619,1725828641891,-150.0,0.00014368,2]
[337570621,1725828641900,-5858.0,0.00014368,2]
[337570623,1725828641909,-1145.0,0.00014368,2]
[337570625,1725828641918,-9307.0,0.00014368,2]
[337570627,1725828641928,-150.0,0.00014368,2]
[337570629,1725828641939,-817.614,0.00014368,2]
[337570631,1725828641948,-150.09,0.00014368,2]
[337570633,1725828641960,-150.0,0.00014387,2]
[337570635,1725828641971,-700.0,0.000144,5]
[337570637,1725828641981,-700.0,0.000145,5]
[337570639,1725828641991,-433.06,0.0001459,2]
[337570641,1725828642002,-1000.0,0.00014596,2]
[337570643,1725828642011,-700.0,0.000146,5]
[337570645,1725828642021,-150.16,0.00014612,2]
[337570647,1725828642030,-150.0,0.00014687,2]
[337570649,1725828642039,-700.0,0.000147,5]
[337570651,1725828642048,-421.34449989,0.00014739,2]
[337570653,1725828642057,-433.06,0.0001479,2]
[337570655,1725828642067,-267.071885,0.00014795,2]
[337570657,1725828642076,-1000.0,0.000148,2]
[337570659,1725828642086,-1614.2100197,0.000148,2]
[337570786,1725828643326,-150.0,0.00014368,2]
[337570789,1725828643336,-885.7899803,0.000148,2]
[337570791,1725828643346,-836.0,0.000148,5]
[337570793,1725828643357,-433.06,0.00014835,2]
[337570794,1725828643366,-361.415,0.0001485,2]
[337570796,1725828643376,-150.0,0.0001488,2]
[337570798,1725828643386,-433.06,0.0001488,2]
[337570800,1725828643397,-433.06,0.0001488,2]
[337570802,1725828643408,-582.16202813,0.00014889,2]
[337570804,1725828643417,-210.35123247,0.0001489,2]
[337570806,1725828643429,-222.70876753,0.0001489,2]
[337570808,1725828643439,-433.06,0.0001489,2]
[337570810,1725828643448,-185.74668343,0.0001489,2]
[337570889,1725828644221,-247.31331657,0.0001489,2]
[337570891,1725828644230,-433.06,0.0001489,2]
[337570893,1725828644240,-433.06,0.0001489,2]
[337570895,1725828644249,-433.06,0.0001489,2]
[337570897,1725828644259,-433.06,0.0001489,2]
[337570899,1725828644268,-433.06,0.0001489,2]
[337570901,1725828644277,-433.06,0.0001489,2]
[337570903,1725828644286,-433.06,0.0001489,2]
[337570905,1725828644295,-433.06,0.0001489,2]
[337570907,1725828644305,-500.0,0.00014899,2]
[337570908,1725828644314,-205.58153379,0.00014899,2]
[337570910,1725828644323,-494.53029836,0.000149,2]
[337570912,1725828644332,-8153.32549797,0.000149,2]
[337570915,1725828644343,-500.0,0.000149,2]
[337570917,1725828644354,-311.24,0.000149,2]
[337571114,1725828646319,-79009.12041181,0.000149,2]
[337571121,1725828646378,-535.31,0.000149,2]
[337571126,1725828646437,-64075.94429022,0.000149,2]
[337571128,1725828646447,-500.0,0.000149,2]
[337571130,1725828646457,-740.0578,0.000149,2]
[337571132,1725828646466,-8500.0,0.000149,2]
[337571134,1725828646476,-155.94268703,0.000149,2]
[337571136,1725828646486,-320.3975,0.000149,2]
[337571138,1725828646496,-211.88152153,0.000149,2]
[337571140,1725828646505,-5937.25204869,0.000149,2]
[337571142,1725828646514,-185.41295282,0.000149,2]
[337571144,1725828646524,-3282.68051467,0.000149,2]
[337571146,1725828646534,-1016.96240217,0.000149,2]
[337571148,1725828646543,-355.37919382,0.000149,2]
[337571150,1725828646554,-685.25996181,0.000149,2]
[337571152,1725828646565,-150.0,0.00014938,2]
[337571154,1725828646575,-287.66835123,0.00014957,2]
[337571156,1725828646584,-155.017,0.00014978,2]
[337571158,1725828646594,-161.22266981,0.00014986,2]
[337571160,1725828646604,-201.80207517,0.00014989,5]
[337571162,1725828646613,-1180.37268989,0.00014989,5]
[337571164,1725828646623,-175.5090904,0.0001499,2]
[337571166,1725828646632,-175.5090904,0.0001499,2]
[337571168,1725828646642,-175.5090904,0.0001499,2]
[337571170,1725828646652,-151.34,0.0001499,2]
[337571171,1725828646661,-151.34,0.0001499,2]
[337571173,1725828646671,-151.34,0.0001499,2]
[337571175,1725828646681,-198.19792483,0.00014999,5]
[337571178,1725828646692,-1468.30408573,0.00014999,5]
[337571179,1725828646701,-1000.0,0.00014999,2]
[337571181,1725828646712,-970.0,0.00015,2]
[337571183,1725828646722,-11913.91043298,0.00015,2]
[337571185,1725828646735,-1338.8375,0.00015,2]
[337571785,1725828851904,500.0,0.000123,2]
[337571786,1725829071489,170.92,0.00010523,2]
[337571787,1725829104833,151.64,0.00010959,2]
[337571788,1725829168585,389.63,0.00011194,2]
[337571789,1725829202664,150.0,0.00010959,2]
[337571790,1725829202851,150.0,0.00010959,2]
[337571791,1725829203051,150.0,0.00010959,2]
[337571792,1725829203227,150.0,0.00010959,2]
[337571793,1725829203440,150.0,0.00010959,2]
[337571794,1725829203617,150.0,0.00010959,2]
[337571795,1725829203822,150.0,0.00010959,2]
[337571796,1725829204006,150.0,0.00010959,2]
[337571797,1725829204185,150.0,0.00010959,2]
[337571798,1725829204398,150.0,0.00010959,2]
[337571799,1725829204602,150.0,0.00010959,2]
[337571800,1725829204846,150.0,0.00010959,2]
[337571801,1725829205042,150.0,0.00010959,2]
[337571802,1725829205226,150.0,0.00010959,2]
[337571803,1725829205435,150.0,0.00010959,2]
[337571804,1725829205817,150.0,0.00010959,2]
[337571805,1725829206970,150.0,0.00010959,2]
[337571806,1725829207005,154.67203195,0.00010959,2]
[337571808,1725829544784,170.92,0.00010196,2]
[337571809,1725829672899,370.14,0.00010799,2]
[337571814,1725829810671,-353.958459,0.00012581,2]
[337571815,1725829810699,-2478.0059,0.00012622,2]
[337571816,1725829810726,-1847.61004656,0.00012644,2]
[337571831,1725829831462,-200.0,0.00012581,2]
[337571833,1725829831472,-2400.98754306,0.00012644,2]
[337571835,1725829831481,-231.59,0.00012662,2]
[337571837,1725829831491,-243.5,0.00012663,2]
[337571839,1725829831500,-150.0,0.00012712,2]
[337571841,1725829831510,-194.02,0.00012722,2]
[337571843,1725829831519,-250.0,0.00012727,2]
[337571845,1725829831528,-659.17,0.00012731,2]
[337571847,1725829831538,-170.92,0.00012744,2]
[337571848,1725829831547,-4248.5975896,0.00012963,2]
[337571849,1725829831557,-370.14,0.00013063,2]
[337571850,1725829831566,-250.0,0.00013122,2]
[337571851,1725829831575,-1000.0,0.00013127,2]
[337571852,1725829831584,-165.36,0.00013131,2]
[337571853,1725829831593,-499.99,0.00013131,2]
[337571854,1725829831603,-260.93,0.00013132,2]
[337571855,1725829831612,-933.37,0.00013134,2]
[337571856,1725829831622,-933.37,0.00013138,2]
[337571857,1725829831631,-933.37,0.00013141,2]
[337571858,1725829831641,-933.37,0.00013144,2]
[337571859,1725829831650,-933.37,0.00013148,2]
[337571860,1725829831660,-300.0,0.0001315,2]
[337571861,1725829831669,-933.37,0.00013151,2]
[337571862,1725829831679,-933.37,0.00013155,2]
[337571863,1725829831688,-933.37,0.00013158,2]
[337571864,1725829831698,-933.37,0.00013162,2]
[337571865,1725829831707,-933.37,0.00013165,2]
[337571866,1725829831716,-933.37,0.00013169,2]
[337571867,1725829831725,-933.37,0.00013172,2]
[337571868,1725829831734,-150.0,0.00013175,2]
[337571869,1725829831743,-933.37,0.00013175,2]
[337571870,1725829831753,-155.017,0.00013178,2]
[337571871,1725829831762,-933.37,0.00013179,2]
[337571872,1725829831772,-933.37,0.00013182,2]
[337571873,1725829831782,-933.37,0.00013186,2]
[337571874,1725829831791,-933.37,0.00013189,2]
[337571875,1725829831801,-933.37,0.00013193,2]
[337571877,1725829831810,-1300.698,0.00013193,2]
[337571879,1725829831819,-933.37,0.00013196,2]
[337571881,1725829831828,-933.37,0.000132,2]
[337571883,1725829831837,-500.0,0.00013467,2]
[337571884,1725829831846,-151.8877668,0.00013699,2]
[337571886,1725829831869,-29.9522332,0.00013699,2]
[337571888,1725829831879,-687.62868461,0.00013699,2]
[337571890,1725829831890,-270.7366813,0.00013699,2]
[337571892,1725829831900,-572.13348406,0.00013699,2]
[337571894,1725829831911,-685.05424735,0.00013699,2]
[337572038,1725829837635,-535.44690268,0.00013699,2]
[337572039,1725829837647,-150.16,0.00013699,2]
[337572040,1725829837660,-200.0,0.00013699,2]
[337572041,1725829837672,-857.33,0.00013757,2]
[337572042,1725829837684,-155.017,0.0001387,2]
[337572044,1725829837695,-468.791,0.00013964,2]
[337572046,1725829837706,-1260.0,0.00013964,2]
[337572048,1725829837719,-624.0,0.00013964,2]
[337572049,1725829837731,-1103.26557731,0.00013964,2]
[337572050,1725829837746,-443.73442269,0.00013964,2]
[337572053,1725829837758,-90.68946731,0.00013964,2]
[337572055,1725829837772,-59.31053269,0.00013964,2]
[337572057,1725829837784,-378.39890066,0.00013964,2]
[337572060,1725829837799,-432.60109934,0.00013964,2]
[337572062,1725829837810,-557.0,0.00013964,2]
[337572064,1725829837823,-931.0,0.00013964,2]
[337572066,1725829837835,-553.0,0.00013964,2]
[337572067,1725829837847,-1900.0,0.00013964,2]
[337572068,1725829837860,-837.158,0.00013964,2]
[337572069,1725829837871,-805.0,0.00013964,2]
[337572070,1725829837884,-3405.07,0.00013964,2]
[337572072,1725829837896,-248.0,0.00013964,2]
[337572075,1725829837908,-1119.0,0.00013964,2]
[337572077,1725829837920,-5858.0,0.00013964,2]
[337572079,1725829837933,-5456.17090066,0.00013964,2]
[337572082,1725829837948,-304.94405594,0.00013964,2]
[337572084,1725829837962,-782.53154917,0.00013964,2]
[337572087,1725829837977,-276.73994888,0.00013964,2]
[337572089,1725829837992,-403.59203178,0.00013964,2]
[337572092,1725829838006,-476.81295156,0.00013964,2]
[337572093,1725829838021,-800.0,0.00013964,2]
[337572097,1725829839463,-548.275,0.00013964,2]
[337572124,1725829840164,-257.93356201,0.00013964,2]
[337572126,1725829840175,-386.034,0.00013964,2]
[337572128,1725829840186,-289.013,0.00013964,2]
[337572130,1725829840197,-173.83,0.00013971,2]
[337572132,1725829840208,-11.11392571,0.00013973,2]
[337572135,1725829840225,-292.44638629,0.00013973,2]
[337572137,1725829840235,-4390.19157776,0.00014082,2]
[337572139,1725829840249,-308.94361421,0.00014082,2]
[337572140,1725829840262,-273.672475,0.00014082,2]